bitfinex/quotes_SOLUSD_20250621
["timestamp","ask_amount","ask_price","bid_price","bid_amount"]
[1750531233905,9.09347383,139.71,139.67,9.09347383]
[1750531234109,0.74,139.7,139.67,9.09347383]
[1750531234316,9.09347383,139.68,139.62,62.40493014]
[1750531234508,0.74,139.67,139.65,7.16075904]
[1750531234819,9.09347383,139.68,139.65,7.16075904]
[1750531235016,9.83347383,139.68,139.65,7.16075904]
[1750531235221,0.74,139.7,139.65,34.15613047]
[1750531235537,0.74,139.68,139.65,34.15613047]
[1750531235902,0.74,139.68,139.66,9.09347383]
[1750531236302,35.09347383,139.69,139.65,34.15613047]
[1750531236504,0.74,139.68,139.65,34.15613047]
[1750531236767,35.09347383,139.69,139.65,34.15613047]
[1750531237321,9.09347383,139.72,139.68,9.09347383]
[1750531237509,0.74,139.71,139.68,9.09347383]
[1750531238114,0.74,139.68,139.65,25.06265664]
[1750531238414,0.74,139.67,139.65,34.15613047]
[1750531239229,0.74,139.67,139.65,25.06265664]
[1750531239500,0.74,139.67,139.65,34.15613047]
[1750531240426,9.09347383,139.68,139.65,25.06265664]
[1750531240630,0.74,139.67,139.65,25.06265664]
[1750531240822,0.74,139.65,139.64,13.42107804]
[1750531241227,9.83347383,139.65,139.64,13.42107804]
[1750531241409,157.83347383,139.65,139.64,6.26]
[1750531241620,157.09347383,139.65,139.63,7.16158814]
[1750531241815,9.09347383,139.64,139.6,7.16332378]
[1750531242119,0.74,139.62,139.6,7.16332378]
[1750531242632,0.74,139.61,139.6,7.16332378]
[1750531244045,9.83347383,139.61,139.6,7.16332378]
[1750531244405,0.74,139.61,139.6,7.16332378]
[1750531244609,15.95344484,139.64,139.6,16.25679761]
[1750531244820,35.82347383,139.64,139.6,25.07163323]
[1750531245019,0.73,139.63,139.6,25.07163323]
[1750531245633,0.73,139.63,139.6,34.16510706]
[1750531247236,0.73,139.63,139.6,25.07163323]
[1750531248122,35.09347383,139.64,139.6,25.07163323]
[1750531248432,9.82347383,139.63,139.6,25.07163323]
[1750531248634,0.73,139.62,139.6,25.07163323]
[1750531250517,9.09347383,139.63,139.6,25.07163323]
[1750531250717,0.73,139.62,139.6,25.07163323]
[1750531252343,148.0,139.65,139.61,9.09347383]
[1750531252543,148.0,139.65,139.6,60.88825214]
[1750531252725,148.0,139.65,139.63,9.09347383]
[1750531253748,148.0,139.65,139.64,9.09347383]
[1750531254039,148.0,139.65,139.63,9.09347383]
[1750531254441,0.73,139.67,139.64,7.16127184]
[1750531254646,148.0,139.68,139.65,9.09347383]
[1750531254844,148.0,139.68,139.65,15.35347383]
[1750531256236,148.73,139.68,139.65,15.35347383]
[1750531256735,148.73,139.68,139.66,7.16024631]
[1750531258357,0.73,139.67,139.66,7.16024631]
[1750531259349,148.73,139.68,139.66,7.16024631]
[1750531260224,0.73,139.67,139.66,7.16024631]
[1750531261453,148.0,139.68,139.66,7.16024631]
[1750531261833,148.0,139.68,139.66,16.25372014]
[1750531262317,148.73,139.68,139.66,7.16024631]
[1750531264270,148.0,139.68,139.66,7.16024631]
[1750531264639,26.0,139.69,139.66,25.06086209]
[1750531264935,26.73,139.69,139.66,25.06086209]
[1750531265345,0.73,139.69,139.66,34.15433592]
[1750531266542,0.73,139.69,139.66,25.06086209]
[1750531267231,0.73,139.68,139.66,25.06086209]
[1750531268126,0.73,139.69,139.66,25.06086209]
[1750531268350,36.61537383,139.71,139.66,34.15433592]
[1750531268553,154.05604248,139.7,139.67,9.09347383]
[1750531268852,148.73,139.7,139.67,9.09347383]
[1750531269347,148.73,139.7,139.68,7.15922107]
[1750531269751,148.0,139.7,139.68,7.15922107]
[1750531270256,148.73,139.7,139.68,7.15922107]
[1750531270429,0.73,139.69,139.68,7.15922107]
[1750531271549,0.73,139.69,139.67,7.15973365]
[1750531273478,148.0,139.7,139.67,25.05906779]
[1750531273780,35.09347383,139.71,139.67,25.05906779]
[1750531273781,148.73,139.73,139.69,9.09347383]
[1750531273940,148.0,139.73,139.71,9.09347383]
[1750531274468,148.0,139.76,139.72,9.09347383]
[1750531274638,6.016553,139.75,139.72,9.09347383]
[1750531274842,0.68,139.75,139.72,9.09347383]
[1750531275771,0.68,139.75,139.73,7.15665927]
[1750531276581,0.68,139.73,139.69,6.32]
[1750531276775,0.68,139.7,139.69,6.32]
[1750531276961,26.68,139.7,139.69,6.32]
[1750531277273,41.10680366,139.7,139.69,6.32]
[1750531278271,41.10680366,139.7,139.69,13.47870856]
[1750531278569,35.77347383,139.7,139.69,13.47870856]
[1750531279157,41.10709195,139.7,139.69,13.47870856]
[1750531279977,35.77347383,139.7,139.69,13.47870856]
[1750531280164,35.77347383,139.7,139.69,6.32]
[1750531280345,41.10680013,139.7,139.69,13.47870856]
[1750531280545,26.0,139.67,139.62,17.9048159]
[1750531280749,9.77347383,139.63,139.6,6.32]
[1750531281071,9.77347383,139.61,139.6,6.32]
[1750531281269,0.68,139.61,139.6,6.32]
[1750531281439,9.77347383,139.61,139.6,6.32]
[1750531281645,9.77347383,139.61,139.59,7.16383695]
[1750531281845,9.77347383,139.6,139.59,7.16383695]
[1750531282152,26.68,139.63,139.57,25.0757808]
[1750531282359,9.09347383,139.62,139.58,9.09347383]
[1750531283757,9.09347383,139.62,139.59,7.16383695]
[1750531283961,9.77347383,139.61,139.59,7.16383695]
[1750531284286,26.0,139.64,139.59,7.16383695]
[1750531284287,9.77347383,139.6,139.59,7.16383695]
[1750531284461,0.68,139.6,139.59,7.16383695]
[1750531285276,9.77347383,139.6,139.59,7.16383695]
[1750531285778,9.77347383,139.6,139.57,17.9109173]
[1750531285779,9.09347383,139.6,139.57,25.0757808]
[1750531285976,9.77347383,139.59,139.57,25.0757808]
[1750531286657,9.77347383,139.58,139.57,7.1648635]
[1750531287381,9.77347383,139.59,139.57,7.1648635]
[1750531288176,148.0,139.63,139.57,7.1648635]
[1750531288177,148.0,139.63,139.57,34.1704961]
[1750531288378,9.09347383,139.6,139.57,25.07702227]
[1750531288684,9.77347383,139.59,139.57,25.07702227]
[1750531289262,9.77347383,139.59,139.57,7.1648635]
[1750531289472,148.0,139.63,139.56,6.32]
[1750531289473,0.68,139.57,139.56,13.48531809]
[1750531289672,9.77347383,139.57,139.56,13.48531809]
[1750531290564,9.77347383,139.57,139.56,6.32]
[1750531290784,9.77347383,139.57,139.56,7.16537689]
[1750531292362,0.68,139.56,139.55,7.1657317]
[1750531292669,9.77347383,139.56,139.55,7.1657317]
[1750531293376,0.68,139.55,139.54,131.83042235]
[1750531293578,157.77347383,139.55,139.54,124.66420572]
[1750531293789,26.0,139.52,139.5,7.16832555]
[1750531293959,9.77347383,139.51,139.5,7.16832555]
[1750531294573,35.09347383,139.52,139.5,6.16832555]
[1750531295572,35.77347383,139.52,139.5,6.16832555]
[1750531295971,9.09347383,139.51,139.5,6.16832555]
[1750531296207,0.68,139.5,139.49,13.48883609]
[1750531296482,9.77347383,139.5,139.49,6.32]
[1750531296697,0.68,139.49,139.44,13.49154331]
[1750531296860,9.09347383,139.47,139.44,13.49154331]
[1750531297378,9.09347383,139.47,139.44,31.4204016]
[1750531297379,9.77347383,139.47,139.44,31.4204016]
[1750531297980,0.68,139.47,139.44,31.4204016]
[1750531298187,35.77347383,139.48,139.44,31.4204016]
[1750531298382,9.09347383,139.49,139.45,9.09347383]
[1750531298688,9.77347383,139.49,139.44,40.51387543]
[1750531299471,9.09347383,139.48,139.44,40.51387543]
[1750531299873,9.77347383,139.48,139.44,40.51387543]
[1750531300286,9.77347383,139.48,139.44,31.4204016]
[1750531300485,9.77347383,139.47,139.44,31.4204016]
[1750531300670,9.77347383,139.46,139.44,31.4204016]
[1750531305175,157.09347383,139.47,139.44,31.4204016]
[1750531305691,148.0,139.47,139.44,40.51387543]
[1750531307876,9.09347383,139.46,139.44,31.4204016]
[1750531308089,0.74,139.45,139.44,31.4204016]
[1750531308497,0.74,139.45,139.44,13.49154331]
[1750531308700,9.83347383,139.45,139.44,13.49154331]
[1750531308901,9.09347383,139.45,139.43,7.17185677]
[1750531309104,35.83347383,139.44,139.43,7.17185677]
[1750531310397,35.83347383,139.44,139.4,25.107604]
[1750531310603,9.09347383,139.43,139.4,25.107604]
[1750531310910,11.35387383,139.46,139.42,9.09347383]
[1750531311211,1.5204,139.46,139.41,9.09347383]
[1750531311391,9.83347383,139.45,139.41,9.09347383]
[1750531312409,9.83347383,139.45,139.42,25.10400229]
[1750531313218,1.5204,139.46,139.37,25.11300853]
[1750531313219,26.0,139.4,139.37,25.11300853]
[1750531313390,35.09347383,139.4,139.37,25.11300853]
[1750531313915,35.83347383,139.4,139.37,25.11300853]
[1750531314217,35.09347383,139.4,139.37,25.11300853]
[1750531314587,0.74,139.39,139.37,25.11300853]
[1750531314807,15.02282079,139.4,139.37,25.11300853]
[1750531315013,15.76282079,139.4,139.37,25.11300853]
[1750531315217,0.74,139.39,139.37,25.11300853]
[1750531315416,0.74,139.39,139.37,7.17514529]
[1750531315725,0.74,139.38,139.37,7.17514529]
[1750531315895,15.02282079,139.39,139.37,7.17514529]
[1750531316213,15.76282079,139.39,139.37,7.17514529]
[1750531317093,15.76282079,139.38,139.37,7.17514529]
[1750531319390,26.74,139.37,139.36,131.14522436]
[1750531319606,41.76282079,139.37,139.36,124.82522436]
[1750531320189,41.76282079,139.37,139.36,132.00088452]
[1750531320615,47.03879553,139.37,139.36,132.00088452]
[1750531321592,47.03879553,139.37,139.36,7.17566016]
[1750531321992,31.27597474,139.37,139.36,7.17566016]
[1750531322217,148.0,139.42,139.36,40.13763135]
[1750531322522,26.0,139.4,139.39,15.02282079]
[1750531322818,26.0,139.39,139.37,35.74]
[1750531323017,26.0,139.39,139.38,7.1746305]
[1750531323517,5.29978227,139.39,139.38,22.19745129]
[1750531323700,163.02282079,139.42,139.38,40.13402755]
[1750531324015,31.2993841,139.41,139.38,40.13402755]
[1750531324316,5.2993841,139.4,139.38,40.13402755]
[1750531324624,5.30005807,139.39,139.38,25.11120676]
[1750531324836,41.76282079,139.41,139.38,25.11120676]
[1750531325003,5.30006164,139.4,139.38,25.11120676]
[1750531325199,41.76282079,139.41,139.38,25.11120676]
[1750531325401,5.30002908,139.4,139.38,40.13402755]
[1750531325604,26.74,139.41,139.38,40.13402755]
[1750531325904,5.29990929,139.4,139.38,40.13402755]
[1750531326109,26.74,139.41,139.38,40.13402755]
[1750531326425,5.30025585,139.4,139.38,25.11120676]
[1750531326609,41.76282079,139.41,139.38,25.11120676]
[1750531326816,21.06332935,139.4,139.38,25.11120676]
[1750531327018,5.30050856,139.39,139.38,25.11120676]
[1750531327723,5.30050856,139.39,139.38,7.1746305]
[1750531328322,21.06332935,139.39,139.38,7.1746305]
[1750531329227,0.74,139.38,139.37,13.51495541]
[1750531329396,21.06332935,139.38,139.37,7.17495541]
[1750531329906,5.30050856,139.38,139.37,7.17495541]
[1750531330119,26.0,139.39,139.37,7.17495541]
[1750531332109,26.74,139.39,139.37,7.17495541]
[1750531332625,41.02282079,139.39,139.37,7.17495541]
[1750531333047,15.76282079,139.41,139.37,40.13563944]
[1750531333202,15.76282079,139.44,139.4,15.02282079]
[1750531333403,0.74,139.42,139.39,40.13222605]
[1750531333826,5.3134766,139.41,139.39,40.13222605]
[1750531334003,26.0,139.42,139.39,69.51222605]
[1750531334827,26.0,139.42,139.39,63.49907975]
[1750531335023,26.75,139.42,139.39,63.49907975]
[1750531335223,26.0,139.42,139.39,63.49907975]
[1750531335912,9.00967449,139.41,139.39,7.17411579]
[1750531336113,6.07271285,139.4,139.39,7.17411579]
[1750531336306,15.08238734,139.4,139.39,7.17411579]
[1750531336507,9.75967449,139.4,139.39,7.17411579]
[1750531337215,15.08655586,139.4,139.39,7.17411579]
[1750531337422,0.75,139.4,139.39,7.17411579]
[1750531338038,9.75967449,139.4,139.39,7.17411579]
[1750531338618,15.09529489,139.4,139.39,7.17411579]
[1750531338814,5.3356204,139.4,139.39,7.17411579]
[1750531339040,9.00967449,139.41,139.39,7.17411579]
[1750531339235,15.09567421,139.4,139.39,7.17411579]
[1750531339735,6.08599972,139.4,139.39,7.17411579]
[1750531340132,26.0,139.41,139.39,34.11907975]
[1750531340313,148.0,139.44,139.4,9.00967449]
[1750531340513,7.39871354,139.46,139.39,25.10940526]
[1750531340514,5.33856631,139.43,139.42,9.00967449]
[1750531340736,0.75,139.46,139.42,9.00967449]
[1750531340941,26.0,139.44,139.41,9.00967449]
[1750531341117,5.34127566,139.43,139.4,9.00967449]
[1750531341323,5.34203528,139.42,139.39,34.11907975]
[1750531341546,35.00967449,139.44,139.4,9.00967449]
[1750531341876,5.34399625,139.43,139.4,9.00967449]
[1750531342012,15.10400648,139.42,139.39,25.10940526]
[1750531342312,15.10400648,139.41,139.39,25.10940526]
[1750531342514,5.34433199,139.4,139.39,7.17411579]
[1750531343512,5.34433199,139.4,139.38,6.34]
[1750531343513,15.10400648,139.4,139.38,13.51443278]
[1750531343744,26.0,139.42,139.38,13.51443278]
[1750531343745,15.10400648,139.39,139.38,13.51443278]
[1750531344949,21.12006809,139.39,139.38,13.51443278]
[1750531347670,5.34433199,139.39,139.38,13.51443278]
[1750531348777,15.0257361,139.41,139.38,13.51443278]
[1750531348950,5.35239315,139.4,139.38,13.51443278]
[1750531349150,15.0257361,139.41,139.38,31.45100904]
[1750531349445,5.35227656,139.4,139.38,31.45100904]
[1750531349655,15.0257361,139.41,139.38,31.45100904]
[1750531350271,5.35347114,139.4,139.38,31.45100904]
[1750531350571,15.7757361,139.41,139.38,31.45100904]
[1750531352072,15.7757361,139.4,139.38,31.45100904]
[1750531352270,15.7757361,139.4,139.38,13.51443278]
[1750531352783,41.7757361,139.39,139.38,6.34]
[1750531352956,47.13606075,139.39,139.38,13.5146305]
[1750531354062,32.11032465,139.39,139.38,13.5146305]
[1750531354263,47.13606075,139.39,139.38,13.5146305]
[1750531354660,47.13933895,139.39,139.38,13.5146305]
[1750531354843,41.7757361,139.39,139.38,13.5146305]
[1750531355879,41.0257361,139.39,139.38,13.5146305]
[1750531356182,26.0,139.39,139.38,13.5146305]
[1750531356353,41.0257361,139.39,139.38,13.5146305]
[1750531357173,47.14166241,139.39,139.38,7.1746305]
[1750531357360,46.39166241,139.39,139.38,7.1746305]
[1750531357555,31.36592631,139.39,139.36,25.11481056]
[1750531357881,26.0,139.39,139.36,25.11481056]
[1750531359060,41.0257361,139.39,139.36,25.11481056]
[1750531359453,20.39426553,139.38,139.36,17.9391504]
[1750531359653,15.0257361,139.38,139.36,17.9391504]
[1750531359851,26.75,139.39,139.36,17.9391504]
[1750531359852,41.7757361,139.39,139.36,17.9391504]
[1750531360074,5.36839618,139.38,139.36,17.9391504]
[1750531360256,41.7757361,139.39,139.36,17.9391504]
[1750531360445,5.36849635,139.38,139.36,17.9391504]
[1750531360647,41.7757361,139.39,139.36,17.9391504]
[1750531360873,5.36840372,139.38,139.36,17.9391504]
[1750531361061,15.0257361,139.38,139.36,17.9391504]
[1750531361260,15.7757361,139.38,139.36,17.9391504]
[1750531363178,0.75,139.38,139.36,17.9391504]
[1750531363379,15.7757361,139.38,139.36,17.9391504]
[1750531363782,0.75,139.38,139.36,17.9391504]
[1750531364281,41.7757361,139.39,139.36,17.9391504]
[1750531364480,5.36822631,139.38,139.36,17.9391504]
[1750531364680,41.7757361,139.39,139.36,17.9391504]
[1750531364866,5.36917341,139.38,139.36,17.9391504]
[1750531365179,35.76484683,139.39,139.36,17.9391504]
[1750531365355,5.3691147,139.38,139.36,17.9391504]
[1750531365561,35.76484683,139.39,139.36,17.9391504]
[1750531365878,5.36912456,139.38,139.36,17.9391504]
[1750531366049,35.76484683,139.39,139.36,17.9391504]
[1750531366250,5.36906778,139.38,139.36,17.9391504]
[1750531366553,35.76484683,139.39,139.36,17.9391504]
[1750531366750,5.36962772,139.38,139.36,17.9391504]
[1750531366976,35.76484683,139.39,139.36,17.9391504]
[1750531367158,26.0,139.39,139.36,17.9391504]
[1750531367577,35.01484683,139.39,139.36,17.9391504]
[1750531369184,35.01484683,139.39,139.36,25.11481056]
[1750531370083,35.76484683,139.39,139.36,25.11481056]
[1750531370377,35.76484683,139.39,139.36,7.17566016]
[1750531370579,9.76484683,139.37,139.36,7.17566016]
[1750531370779,15.13518093,139.37,139.36,7.17566016]
[1750531371372,15.13518093,139.37,139.34,25.11824149]
[1750531371685,0.75,139.34,139.33,13.49703573]
[1750531371901,0.75,139.34,139.33,6.32]
[1750531371902,41.13542871,139.34,139.33,6.32]
[1750531372180,41.13542871,139.34,139.33,13.49720519]
[1750531372859,31.37058188,139.34,139.33,13.49720519]
[1750531373059,26.0,139.34,139.33,13.49720519]
[1750531373260,31.36611687,139.34,139.33,13.49720519]
[1750531374084,26.0,139.34,139.33,13.49720519]
[1750531374475,41.12950136,139.34,139.33,13.49720519]
[1750531376486,41.12950136,139.34,139.3,25.12561909]
[1750531376487,0.75,139.33,139.3,25.12561909]
[1750531376687,9.76484683,139.33,139.3,25.12561909]
[1750531377071,9.01484683,139.32,139.3,7.17875089]
[1750531377677,9.76484683,139.32,139.3,7.17875089]
[1750531377873,26.0,139.34,139.29,7.17919734]
[1750531377874,0.75,139.3,139.29,7.17919734]
[1750531378170,9.76484683,139.3,139.29,7.17919734]
[1750531378375,9.01484683,139.3,139.28,13.49960529]
[1750531378570,9.76484683,139.29,139.28,13.49960529]
[1750531380791,26.0,139.29,139.28,13.49960529]
[1750531381094,26.0,139.29,139.28,31.44905962]
[1750531381669,26.75,139.29,139.28,13.49960529]
[1750531381968,0.75,139.28,139.23,6.3]
[1750531382285,9.01484683,139.24,139.23,13.48219534]
[1750531382481,9.76484683,139.24,139.23,13.48219534]
[1750531382790,0.75,139.24,139.23,13.48219534]
[1750531382989,9.01484683,139.25,139.23,13.48219534]
[1750531383591,9.01484683,139.24,139.23,13.48219534]
[1750531383881,9.76484683,139.24,139.23,13.48219534]
[1750531384101,35.76484683,139.24,139.23,6.3]
[1750531384271,0.75,139.23,139.19,7.18442416]
[1750531384468,148.0,139.26,139.21,9.01484683]
[1750531384694,9.01484683,139.25,139.21,9.01484683]
[1750531384891,9.76484683,139.25,139.21,9.01484683]
[1750531385697,9.76484683,139.24,139.2,9.01484683]
[1750531385898,9.76484683,139.24,139.19,51.14548458]
[1750531386191,9.76484683,139.24,139.2,9.01484683]
[1750531386568,9.76484683,139.24,139.21,7.18339199]
[1750531387290,9.76484683,139.23,139.21,7.18339199]
[1750531387900,0.75,139.23,139.21,7.18339199]
[1750531388286,9.76484683,139.24,139.21,25.14187198]
[1750531391006,9.01484683,139.22,139.21,7.18339199]
[1750531391175,0.75,139.22,139.21,7.18339199]
[1750531391676,9.76484683,139.22,139.21,7.18339199]
[1750531392980,9.76484683,139.22,139.19,7.18442416]
[1750531393186,9.01484683,139.21,139.19,7.18442416]
[1750531393504,9.76484683,139.21,139.19,7.18442416]
[1750531394194,9.01484683,139.21,139.19,7.18442416]
[1750531394437,9.01484683,139.23,139.19,34.16033141]
[1750531394585,148.0,139.21,139.2,9.01484683]
[1750531395502,148.0,139.21,139.2,16.19875487]
[1750531395996,148.0,139.21,139.2,7.18390804]
[1750531396305,148.0,139.21,139.2,16.19875487]
[1750531396789,148.0,139.21,139.2,7.18390804]
[1750531397899,148.0,139.21,139.19,25.14548458]
[1750531398291,148.0,139.21,139.19,34.16033141]
[1750531398884,148.0,139.21,139.19,25.14548458]
[1750531399393,148.0,139.21,139.19,34.16033141]
[1750531399595,148.0,139.21,139.2,9.01484683]
[1750531400206,148.0,139.21,139.2,16.19875487]
[1750531400815,148.0,139.24,139.2,52.80817384]
[1750531401110,1.5939,139.28,139.23,9.01484683]
[1750531401111,0.75,139.27,139.23,9.01484683]
[1750531401311,9.76484683,139.29,139.24,9.01484683]
[1750531401508,26.0,139.28,139.24,9.01484683]
[1750531401695,26.0,139.28,139.25,9.01484683]
[1750531402084,35.76484683,139.28,139.24,9.01484683]
[1750531402288,26.0,139.27,139.25,7.18132854]
[1750531403020,148.75,139.3,139.26,9.01484683]
[1750531403312,174.75,139.3,139.27,9.01484683]
[1750531403517,148.0,139.3,139.28,9.01484683]
[1750531404087,148.0,139.3,139.29,9.01484683]
[1750531404584,0.75,139.33,139.29,34.14227879]
[1750531404790,157.01484683,139.35,139.29,25.12743196]
[1750531405105,0.75,139.31,139.29,25.12743196]
[1750531405782,26.0,139.32,139.29,25.12743196]
[1750531405984,26.0,139.32,139.3,9.01484683]
[1750531406395,0.75,139.34,139.31,25.12382455]
[1750531406628,148.0,139.35,139.32,9.01484683]
[1750531406784,0.75,139.37,139.33,9.01484683]
[1750531406982,6.4215,139.39,139.34,9.01484683]
[1750531406983,0.75,139.38,139.34,9.01484683]
[1750531407217,26.75,139.38,139.34,9.01484683]
[1750531407511,26.0,139.37,139.34,9.01484683]
[1750531408506,26.75,139.37,139.35,7.17617509]
[1750531408815,0.75,139.39,139.35,34.13145966]
[1750531408991,35.76484683,139.39,139.35,34.13145966]
[1750531409786,0.75,139.38,139.35,34.13145966]
[1750531411126,35.01484683,139.39,139.35,34.13145966]
[1750531411294,9.01484683,139.36,139.35,7.17617509]
[1750531411493,35.76484683,139.36,139.35,7.17617509]
[1750531411717,26.75,139.34,139.33,7.17720519]
[1750531412288,35.76484683,139.34,139.33,7.17720519]
[1750531413107,35.01484683,139.34,139.31,7.17823558]
[1750531413324,9.76484683,139.32,139.31,7.17823558]
[1750531420447,0.75,139.31,139.3,7.17858502]
[1750531420620,148.0,139.3,139.27,7.18029726]
[1750531420832,148.75,139.29,139.27,7.18029726]
[1750531421537,148.75,139.29,139.26,25.13276503]
[1750531422240,148.0,139.29,139.26,25.13276503]
[1750531422437,0.75,139.28,139.26,7.18081286]
[1750531422755,0.75,139.27,139.26,7.18081286]
[1750531423252,35.76484683,139.27,139.26,7.18081286]
[1750531423423,35.76484683,139.27,139.21,24.93004886]
[1750531423424,35.01484683,139.27,139.21,7.18339199]
[1750531423627,9.01484683,139.25,139.21,16.19823882]
[1750531423926,157.76484683,139.26,139.22,9.01484683]
[1750531424134,0.75,139.25,139.22,9.01484683]
[1750531424481,0.75,139.25,139.21,25.14187198]
[1750531424619,9.76484683,139.24,139.21,25.14187198]
[1750531425226,26.0,139.23,139.21,7.18339199]
[1750531425428,26.75,139.23,139.21,7.18339199]
[1750531425653,26.75,139.23,139.2,25.14367815]
[1750531426450,26.0,139.23,139.2,34.15852498]
[1750531426632,0.75,139.25,139.22,9.01484683]
[1750531426840,26.75,139.25,139.22,9.01484683]
[1750531427025,35.76484683,139.25,139.21,9.01484683]
[1750531427851,35.76484683,139.25,139.2,25.14367815]
[1750531427852,0.75,139.24,139.22,7.18287602]
[1750531428060,9.76484683,139.24,139.22,7.18287602]
[1750531428263,35.76484683,139.23,139.22,7.18287602]
[1750531429228,0.75,139.22,139.19,7.18442416]
[1750531429460,9.76484683,139.22,139.19,7.18442416]
[1750531430345,0.75,139.22,139.19,34.16033141]
[1750531430556,26.0,139.23,139.2,9.01484683]
[1750531430951,174.0,139.23,139.2,9.01484683]
[1750531433147,174.75,139.23,139.19,34.16033141]
[1750531433335,0.75,139.22,139.19,34.16033141]
[1750531434575,9.01484683,139.22,139.19,25.14548458]
[1750531434739,0.75,139.21,139.19,25.14548458]
[1750531435239,9.76484683,139.21,139.19,25.14548458]
[1750531435440,0.75,139.2,139.19,7.18442416]
[1750531436237,9.76484683,139.2,139.19,7.18442416]
[1750531438079,35.76484683,139.2,139.18,13.50482232]
[1750531438249,26.0,139.16,139.13,13.50752246]
[1750531438438,9.76484683,139.14,139.13,13.50752246]
[1750531439739,26.0,139.16,139.13,40.49117544]
[1750531440467,0.75,139.15,139.13,31.47632861]
[1750531440670,9.01484683,139.14,139.13,31.47632861]
[1750531440873,9.76484683,139.15,139.13,31.47632861]
[1750531441239,9.76484683,139.14,139.13,13.50752246]
[1750531442979,0.75,139.11,139.1,7.18873185]
[1750531443271,9.01484683,139.11,139.1,7.18873185]
[1750531443476,35.01484683,139.12,139.1,7.18873185]
[1750531444360,35.76484683,139.12,139.1,7.18873185]
[1750531445069,35.76484683,139.12,139.09,112.9506838]
[1750531445070,0.75,139.1,139.09,112.9506838]
[1750531445277,9.76484683,139.1,139.07,7.19062342]
[1750531445484,9.01484683,139.08,139.04,25.17261219]
[1750531445648,9.01484683,139.07,139.04,25.17261219]
[1750531446053,9.01484683,139.05,139.04,7.19217491]
[1750531447077,9.01484683,139.07,139.04,25.17261219]
[1750531447280,9.76484683,139.05,138.99,6.34]
[1750531447451,9.76484683,139.05,139.0,7.1942446]
[1750531447452,9.01484683,139.02,139.0,7.1942446]
[1750531447775,0.75,139.05,139.0,7.1942446]
[1750531447776,9.01484683,139.03,139.0,7.1942446]
[1750531447980,9.01484683,139.03,139.0,25.17985611]
[1750531448367,0.75,139.05,139.0,25.17985611]
[1750531448578,9.01484683,139.03,139.0,25.17985611]
[1750531449390,9.01484683,139.04,139.0,25.17985611]
[1750531449692,9.01484683,139.01,139.0,13.5342446]
[1750531451972,9.01484683,139.01,139.0,7.1942446]
[1750531452163,9.01484683,139.02,139.0,13.5342446]
[1750531452770,9.76484683,139.02,139.0,13.5342446]
[1750531452978,9.01484683,139.01,139.0,13.5342446]
[1750531453162,9.76484683,139.01,139.0,13.5342446]
[1750531453872,9.76484683,139.01,139.0,7.1942446]
[1750531454078,26.75,138.98,138.97,7.19579765]
[1750531454268,26.0,138.98,138.97,13.53579765]
[1750531454587,26.69,139.01,138.97,40.54013861]
[1750531454985,0.69,139.01,138.97,40.54013861]
[1750531455288,0.69,139.0,138.97,31.52529178]
[1750531455464,9.01484683,139.01,138.97,31.52529178]
[1750531455465,0.69,139.01,138.97,31.52529178]
[1750531455782,9.70484683,139.01,138.97,31.52529178]
[1750531455991,0.69,139.01,138.97,40.54013861]
[1750531456174,26.69,139.02,138.98,9.01484683]
[1750531457273,26.69,139.02,138.99,25.18166774]
[1750531457461,26.69,139.02,138.99,34.19651457]
[1750531458264,0.69,139.01,138.99,25.18166774]
[1750531458668,26.69,139.02,138.99,34.19651457]
[1750531458874,26.0,139.02,139.0,9.01484683]
[1750531459298,26.0,139.02,139.01,7.19372706]
[1750531461493,148.0,139.05,139.01,34.19289156]
[1750531461802,148.69,139.05,139.02,9.01484683]
[1750531462022,148.69,139.05,139.03,6.34]
[1750531462364,0.69,139.04,139.03,6.34]
[1750531463774,0.69,139.04,139.03,13.53269222]
[1750531464493,9.70484683,139.04,139.03,6.34]
[1750531464675,0.69,139.03,139.02,7.19289806]
[1750531464973,26.69,139.03,139.02,7.19289806]
[1750531465179,35.70484683,139.03,139.02,7.19289806]
[1750531465705,0.69,139.03,139.02,7.19289806]
[1750531465903,9.70484683,139.03,139.01,7.19372706]
[1750531466090,26.0,139.02,139.01,7.19372706]
[1750531466289,35.70484683,139.02,139.01,7.19372706]
[1750531467387,26.69,139.02,139.01,7.19372706]
[1750531468790,35.70484683,139.02,139.01,7.19372706]